fUSD/lending_fUSD_20251017
["ID","MTS","AMOUNT","RATE_DAILY","PERIOD"]
[391629594,1760709114998,-500.0,0.00028219,17]
[391629595,1760709115008,-500.0,0.00028219,17]
[391629596,1760709115018,-1701.03,0.00028219,17]
[391629597,1760709115028,-1200.12,0.00028219,17]
[391629598,1760709115038,-1288.92,0.00028219,17]
[391629599,1760709115048,-1817.2,0.00028219,17]
[391629600,1760709115058,-500.0,0.00028219,17]
[391629601,1760709115068,-760.86,0.00028219,17]
[391629602,1760709115078,-1098.2,0.00028219,17]
[391629603,1760709115088,-511.22,0.00028219,17]
[391629604,1760709115098,-706.0,0.00028219,17]
[391629605,1760709115108,-3252.66,0.00028219,17]
[391629606,1760709115118,-1046.4,0.00028219,17]
[391629607,1760709115127,-2857.65,0.00028219,17]
[391629608,1760709115138,-500.0,0.00028219,17]
[391629609,1760709115148,-500.0,0.00028219,17]
[391629610,1760709115158,-668.62,0.00028219,17]
[391629611,1760709115169,-3315.73,0.00028219,17]
[391629612,1760709115178,-2028.03,0.00028219,17]
[391629613,1760709115188,-1249.99,0.00028219,17]
[391629614,1760709115198,-500.0,0.00028219,17]
[391629615,1760709115209,-666.89,0.00028219,17]
[391629616,1760709115219,-567.07,0.00028219,17]
[391629617,1760709115229,-624.28,0.00028219,17]
[391629618,1760709115242,-485.78713993,0.00028219,17]
[391629619,1760709115252,-500.0,0.00028219,2]
[391629620,1760709115262,-500.0,0.00028219,17]
[391629621,1760709115272,-500.0,0.00028219,17]
[391629622,1760709115282,-644.5,0.00028219,17]
[391629623,1760709115292,-738.71,0.00028219,17]
[391629624,1760709115302,-500.0,0.00028219,17]
[391629625,1760709115312,-500.0,0.00028219,17]
[391629626,1760709115322,-875.04,0.00028219,17]
[391629627,1760709115332,-2590.26,0.00028219,17]
[391629628,1760709115342,-1145.85,0.00028219,17]
[391629629,1760709115351,-500.0,0.00028219,17]
[391629630,1760709115361,-500.0,0.00028219,17]
[391629631,1760709115370,-589.63,0.00028219,17]
[391629632,1760709115380,-840.86,0.00028219,17]
[391629633,1760709115390,-599.72,0.00028219,17]
[391629634,1760709115400,-500.0,0.00028219,17]
[391629635,1760709115411,-2359.88,0.00028219,17]
[391629636,1760709115421,-2899.42,0.00028219,17]
[391629637,1760709115431,-926.78,0.00028219,17]
[391629638,1760709115441,-970.74,0.00028219,17]
[391629639,1760709115451,-1604.59,0.00028219,17]
[391629640,1760709115461,-500.0,0.00028219,17]
[391629641,1760709115471,-500.0,0.00028219,17]
[391629642,1760709115481,-693.35,0.00028219,2]
[391629643,1760709115494,-620.21,0.00028219,17]
[391629644,1760709115504,-274.39612312,0.00028219,2]
[391629645,1760709115514,-500.0,0.00028219,17]
[391629646,1760709115525,-693.02,0.00028219,17]
[391629647,1760709115535,-500.0,0.00028219,17]
[391629648,1760709115544,-1354.15,0.00028219,17]
[391629649,1760709115554,-3285.62,0.00028219,17]
[391629650,1760709115564,-500.0,0.00028219,17]
[391629651,1760709115574,-751.82,0.00028219,17]
[391629652,1760709115584,-1494.42,0.00028219,17]
[391629653,1760709115594,-633.38,0.00028219,17]
[391629654,1760709115605,-500.0,0.00028219,17]
[391629655,1760709115616,-996.02,0.00028219,17]
[391629656,1760709115626,-534.95,0.00028219,17]
[391629657,1760709115636,-712.19,0.00028219,17]
[391629658,1760709115646,-755.48,0.00028219,17]
[391629659,1760709115656,-652.89,0.00028219,17]
[391629660,1760709115666,-530.1,0.00028219,17]
[391629661,1760709115677,-500.0,0.00028219,17]
[391629662,1760709115687,-2532.97,0.00028219,17]
[391629663,1760709115697,-1140.2,0.00028219,17]
[391629664,1760709115706,-2976.2,0.00028219,17]
[391629665,1760709115717,-630.41,0.00028219,17]
[391629666,1760709115727,-1119.53,0.00028219,17]
[391629667,1760709115736,-1387.94,0.00028219,17]
[391629668,1760709115751,-666.66,0.00028219,17]
[391629669,1760709115761,-566.55,0.00028219,17]
[391629670,1760709115770,-500.0,0.00028219,2]
[391629671,1760709115780,-706.74,0.00028219,17]
[391629672,1760709115790,-1000.0,0.00028219,17]
[391629673,1760709115801,-500.0,0.00028219,7]
[391629674,1760709115810,-390.02369408,0.00028219,17]
[391629675,1760709115819,-1306.87,0.00028219,17]
[391629676,1760709115829,-1247.05,0.00028219,17]
[391629677,1760709115838,-2452.62,0.00028219,17]
[391629678,1760709115848,-500.0,0.00028219,17]
[391629679,1760709115857,-500.0,0.00028219,17]
[391629680,1760709115867,-530.71,0.00028219,17]
[391629681,1760709115876,-500.0,0.00028219,17]
[391629682,1760709115885,-642.79,0.00028219,17]
[391629683,1760709115895,-1026.4,0.00028219,17]
[391629684,1760709115905,-500.0,0.00028219,17]
[391629685,1760709115916,-500.0,0.00028219,17]
[391629686,1760709115925,-500.0,0.00028219,17]
[391629687,1760709115935,-3204.71,0.00028219,17]
[391629688,1760709115945,-522.5,0.00028219,17]
[391629689,1760709115955,-910.91,0.00028219,17]
[391629690,1760709115964,-1081.82,0.00028219,30]
[391629691,1760709115974,-500.0,0.00028219,17]
[391629692,1760709115984,-5381.98,0.00028219,2]
[391629693,1760709115997,-500.0,0.00028219,14]
[391629694,1760709116006,-1649.56,0.00028219,17]
[391629695,1760709116016,-507.36,0.00028219,17]
[391629696,1760709116025,-2000.0,0.00028219,7]
[391629697,1760709116035,-1028.69,0.00028219,17]
[391629698,1760709116044,-2897.84,0.00028219,17]
[391629699,1760709116053,-1506.26,0.00028219,17]
[391629700,1760709116063,-398.37652161,0.00028219,17]
[391629701,1760709116073,-500.0,0.00028219,17]
[391629702,1760709116082,-1864.44,0.00028219,14]
[391629703,1760709116092,-1456.13,0.00028219,17]
[391629704,1760709116102,-500.0,0.00028219,16]
[391629705,1760709116112,-1557.69,0.00028219,17]
[391629706,1760709116122,-2742.55,0.00028219,17]
[391629707,1760709116132,-2074.75,0.00028219,17]
[391629708,1760709116141,-504.38,0.00028219,17]
[391629709,1760709116151,-500.0,0.00028219,17]
[391629710,1760709116160,-1384.14,0.00028219,17]
[391629711,1760709116170,-2196.07,0.00028219,17]
[391629712,1760709116180,-559.51,0.00028219,17]
[391629713,1760709116190,-603.32572146,0.00028219,17]
[391629714,1760709116200,-500.0,0.00028219,17]
[391629715,1760709116210,-3718.78,0.00028219,17]
[391629716,1760709116219,-500.0,0.00028219,17]
[391629717,1760709116229,-500.0,0.00028219,17]
[391629718,1760709116241,-3147.15,0.00028219,17]
[391629719,1760709116251,-500.0,0.00028219,17]
[391629720,1760709116260,-4200.71,0.00028219,17]
[391629721,1760709116270,-500.0,0.00028219,17]
[391629722,1760709116279,-1582.41,0.00028219,17]
[391629723,1760709116289,-1494.76,0.00028219,17]
[391629724,1760709116298,-500.0,0.00028219,17]
[391629725,1760709116307,-1298.58,0.00028219,17]
[391629726,1760709116317,-6323.72,0.00028219,17]
[391629727,1760709116327,-922.69,0.00028219,17]
[391629728,1760709116337,-209.92,0.00028219,9]
[391629729,1760709116347,-500.0,0.00028219,17]
[391629730,1760709116356,-2389.12,0.00028219,17]
[391629731,1760709116366,-500.0,0.00028219,17]
[391629732,1760709116376,-500.0,0.00028219,30]
[391629733,1760709116385,-326.27104919,0.00028254,2]
[391629734,1760709116395,-154.87464162,0.00028301,2]
[391629735,1760709116405,-316.2023933,0.00028301,2]
[391629736,1760709116415,-742.09282916,0.00028324,2]
[391629737,1760709116425,-1300.0,0.00028332,7]
[391629738,1760709116435,-152.59,0.00028333,15]
[391629739,1760709116445,-180.68708189,0.00028356,2]
[391629740,1760709116455,-154.87464162,0.00028356,2]
[391629741,1760709116465,-13671.34,0.00028387,10]
[391629742,1760709116475,-316.2023933,0.00028411,2]
[391629743,1760709116485,-25000.0,0.00028417,10]
[391629744,1760709116498,-152.59,0.00028433,15]
[391629745,1760709116507,-923.5,0.00028455,15]
[391629746,1760709116517,-1160.36,0.00028493,17]
[391629747,1760709116527,-585.15,0.00028493,17]
[391629748,1760709116537,-500.0,0.00028493,17]
[391629749,1760709116547,-500.0,0.00028493,17]
[391629750,1760709116557,-592.79,0.00028493,17]
[391629751,1760709116567,-1160.24,0.00028493,17]
[391629752,1760709116577,-824.37,0.00028493,2]
[391629753,1760709116587,-1730.63,0.00028493,17]
[391629754,1760709116598,-671.89,0.00028493,6]
[391629755,1760709116610,-500.0,0.00028493,2]
[391629756,1760709116620,-1711.57,0.00028493,17]
[391629757,1760709116630,-526.67,0.00028493,17]
[391629758,1760709116640,-3442.59,0.00028493,17]
[391629759,1760709116651,-606.95,0.00028493,17]
[391629760,1760709116661,-780.1,0.00028493,17]
[391629761,1760709116672,-770.05,0.00028493,17]
[391629762,1760709116683,-333.35264216,0.00028493,17]
[391629763,1760709116692,-500.0,0.00028493,17]
[391629764,1760709116703,-1701.03,0.00028493,17]
[391629765,1760709116713,-1200.12,0.00028493,17]
[391629766,1760709116723,-1288.92,0.00028493,17]
[391629767,1760709116733,-1817.2,0.00028493,17]
[391629768,1760709116745,-500.0,0.00028493,17]
[391629769,1760709116756,-760.86,0.00028493,17]
[391629770,1760709117095,-1098.2,0.00028493,17]
[391629771,1760709117106,-511.22,0.00028493,17]
[391629772,1760709117116,-706.0,0.00028493,17]
[391629773,1760709117126,-3252.66,0.00028493,17]
[391629774,1760709117137,-2857.65,0.00028493,17]
[391629775,1760709117147,-1046.4,0.00028493,17]
[391629776,1760709117157,-500.0,0.00028493,17]
[391629777,1760709117167,-500.0,0.00028493,17]
[391629778,1760709117177,-668.62,0.00028493,17]
[391629779,1760709117187,-3315.73,0.00028493,17]
[391629780,1760709117198,-2028.03,0.00028493,17]
[391629781,1760709117207,-1249.99,0.00028493,17]
[391629782,1760709117217,-500.0,0.00028493,17]
[391629783,1760709117227,-666.89,0.00028493,17]
[391629784,1760709117237,-567.07,0.00028493,17]
[391629785,1760709117249,-624.28,0.00028493,17]
[391629786,1760709117259,-500.0,0.00028493,2]
[391629787,1760709117269,-500.0,0.00028493,17]
[391629788,1760709117279,-500.0,0.00028493,17]
[391629789,1760709117289,-644.5,0.00028493,17]
[391629790,1760709117299,-738.71,0.00028493,17]
[391629791,1760709117310,-500.0,0.00028493,17]
[391629792,1760709117320,-500.0,0.00028493,17]
[391629793,1760709117330,-875.04,0.00028493,17]
[391629794,1760709117340,-2590.26,0.00028493,17]
[391629795,1760709117350,-1145.85,0.00028493,17]
[391629796,1760709117360,-500.0,0.00028493,17]
[391629797,1760709117370,-500.0,0.00028493,17]
[391629798,1760709117380,-589.63,0.00028493,17]
[391629799,1760709117390,-840.86,0.00028493,17]
[391629800,1760709117400,-599.72,0.00028493,17]
[391629801,1760709117411,-500.0,0.00028493,17]
[391629802,1760709117421,-2359.88,0.00028493,17]
[391629803,1760709117431,-2899.42,0.00028493,17]
[391629804,1760709117441,-926.78,0.00028493,17]
[391629805,1760709117451,-970.74,0.00028493,17]
[391629806,1760709117461,-1604.59,0.00028493,17]
[391629807,1760709117471,-500.0,0.00028493,17]
[391629808,1760709117481,-500.0,0.00028493,17]
[391629809,1760709117492,-693.35,0.00028493,2]
[391629810,1760709117503,-620.21,0.00028493,17]
[391629811,1760709117513,-500.0,0.00028493,17]
[391629812,1760709117523,-693.02,0.00028493,17]
[391629813,1760709117533,-500.0,0.00028493,17]
[391629814,1760709117543,-1354.15,0.00028493,17]
[391629815,1760709117553,-3285.62,0.00028493,17]
[391629816,1760709117563,-500.0,0.00028493,17]
[391629817,1760709117573,-751.82,0.00028493,17]
[391629818,1760709117582,-1494.42,0.00028493,17]
[391629819,1760709117592,-633.38,0.00028493,17]
[391629820,1760709117602,-500.0,0.00028493,17]
[391629821,1760709117616,-996.02,0.00028493,17]
[391629822,1760709117625,-534.95,0.00028493,17]
[391629823,1760709117635,-712.19,0.00028493,17]
[391629824,1760709117645,-755.48,0.00028493,17]
[391629825,1760709117656,-652.89,0.00028493,17]
[391629826,1760709117666,-530.1,0.00028493,17]
[391629827,1760709117676,-500.0,0.00028493,17]
[391629828,1760709117687,-2532.97,0.00028493,17]
[391629829,1760709117696,-1140.2,0.00028493,17]
[391629830,1760709117707,-2976.2,0.00028493,17]
[391629831,1760709117718,-630.41,0.00028493,17]
[391629832,1760709117728,-1119.53,0.00028493,17]
[391629833,1760709117738,-1387.94,0.00028493,17]
[391629834,1760709117754,-666.66,0.00028493,17]
[391629835,1760709117764,-566.55,0.00028493,17]
[391629836,1760709117775,-500.0,0.00028493,2]
[391629837,1760709117784,-706.74,0.00028493,17]
[391629838,1760709117794,-1000.0,0.00028493,17]
[391629839,1760709117804,-500.0,0.00028493,7]
[391629840,1760709117814,-1306.87,0.00028493,17]
[391629841,1760709117824,-1247.05,0.00028493,17]
[391629842,1760709117835,-2452.62,0.00028493,17]
[391629843,1760709117845,-500.0,0.00028493,17]
[391629844,1760709117855,-500.0,0.00028493,17]
[391629845,1760709117864,-530.71,0.00028493,17]
[391629846,1760709117874,-500.0,0.00028493,17]
[391629847,1760709117884,-642.79,0.00028493,17]
[391629848,1760709117894,-1026.4,0.00028493,17]
[391629849,1760709117904,-500.0,0.00028493,17]
[391629850,1760709117914,-500.0,0.00028493,17]
[391629851,1760709117924,-500.0,0.00028493,17]
[391629852,1760709117934,-3204.71,0.00028493,17]
[391629853,1760709117943,-522.5,0.00028493,17]
[391629854,1760709117953,-910.91,0.00028493,17]
[391629855,1760709117963,-1081.82,0.00028493,30]
[391629856,1760709117973,-500.0,0.00028493,17]
[391629857,1760709117983,-5381.98,0.00028493,2]
[391629858,1760709117995,-500.0,0.00028493,14]
[391629859,1760709118005,-1649.56,0.00028493,17]
[391629860,1760709118015,-507.36,0.00028493,17]
[391629861,1760709118025,-2000.0,0.00028493,7]
[391629862,1760709118035,-1028.69,0.00028493,17]
[391629863,1760709118044,-2897.84,0.00028493,17]
[391629864,1760709118054,-1506.26,0.00028493,17]
[391629865,1760709118064,-500.0,0.00028493,17]
[391629866,1760709118074,-1864.44,0.00028493,14]
[391629867,1760709118084,-1456.13,0.00028493,17]
[391629868,1760709118095,-500.0,0.00028493,16]
[391629869,1760709118105,-1557.69,0.00028493,17]
[391629870,1760709118115,-2742.55,0.00028493,17]
[391629871,1760709118125,-2074.75,0.00028493,17]
[391629872,1760709118135,-504.38,0.00028493,17]
[391629873,1760709118145,-500.0,0.00028493,17]
[391629874,1760709118155,-1384.14,0.00028493,17]
[391629875,1760709118165,-2196.07,0.00028493,17]
[391629876,1760709118178,-559.51,0.00028493,17]
[391629877,1760709118188,-500.0,0.00028493,17]
[391629878,1760709118198,-3718.78,0.00028493,17]
[391629879,1760709118210,-500.0,0.00028493,17]
[391629880,1760709118220,-500.0,0.00028493,17]
[391629881,1760709118230,-3147.15,0.00028493,17]
[391629882,1760709118239,-500.0,0.00028493,17]
[391629883,1760709118252,-4200.71,0.00028493,17]
[391629884,1760709118262,-316.2595514,0.00028493,17]
[391629885,1760709118272,-1582.41,0.00028493,17]
[391629886,1760709118282,-1494.76,0.00028493,17]
[391629887,1760709118292,-500.0,0.00028493,17]
[391629888,1760709118302,-1298.58,0.00028493,17]
[391629889,1760709118313,-6323.72,0.00028493,17]
[391629890,1760709118323,-922.69,0.00028493,17]
[391629891,1760709118333,-209.92,0.00028493,10]
[391629892,1760709118343,-500.0,0.00028493,17]
[391629893,1760709118352,-2389.12,0.00028493,17]
[391629894,1760709118362,-500.0,0.00028493,17]
[391629895,1760709118371,-500.0,0.00028493,30]
[391629896,1760709118381,-154.87464162,0.00028493,2]
[391629897,1760709118390,-1000.0,0.000285,2]
[391629898,1760709118400,-316.2023933,0.00028521,2]
[391629899,1760709118409,-154.87464162,0.00028548,2]
[391629900,1760709118419,-357.71693691,0.00028565,2]
[391629901,1760709118428,-3000.0,0.00028606,7]
[391629902,1760709118438,-316.2023933,0.0002863,2]
[391629903,1760709118447,-180.68708189,0.00028658,2]
[391629904,1760709118458,-1000.0,0.0002868,10]
[391629905,1760709118468,-1000.0,0.0002868,10]
[391629906,1760709118478,-1000.0,0.0002868,10]
[391629907,1760709118488,-1000.0,0.0002868,10]
[391629908,1760709118503,-1000.0,0.0002868,10]
[391629909,1760709118513,-1122.52660225,0.0002868,10]
[391629910,1760709118523,-1000.0,0.0002868,10]
[391629911,1760709118533,-1000.0,0.0002868,10]
[391629912,1760709118543,-1000.0,0.0002868,10]
[391629913,1760709118552,-1000.0,0.0002868,10]
[391629914,1760709118562,-1000.0,0.0002868,10]
[391629915,1760709118573,-1000.0,0.0002868,10]
[391629916,1760709118582,-1000.0,0.0002868,10]
[391629917,1760709118592,-1000.0,0.0002868,10]
[391629918,1760709118605,-316.2023933,0.0002874,2]
[391629919,1760709118614,-1160.36,0.00028767,17]
[391629920,1760709118624,-585.15,0.00028767,17]
[391629921,1760709118634,-500.0,0.00028767,17]
[391629922,1760709118643,-500.0,0.00028767,17]
[391629923,1760709118654,-592.79,0.00028767,17]
[391629924,1760709118665,-1160.24,0.00028767,17]
[391629925,1760709118675,-824.37,0.00028767,2]
[391629926,1760709118685,-1730.63,0.00028767,17]
[391629927,1760709118696,-671.89,0.00028767,6]
[391629928,1760709118705,-500.0,0.00028767,2]
[391629929,1760709118715,-1711.57,0.00028767,17]
[391629930,1760709118725,-526.67,0.00028767,17]
[391629931,1760709118735,-3442.59,0.00028767,17]
[391629932,1760709118747,-606.95,0.00028767,17]
[391629933,1760709118757,-780.1,0.00028767,17]
[391629934,1760709118767,-770.05,0.00028767,17]
[391629935,1760709118777,-500.0,0.00028767,17]
[391629936,1760709118787,-1701.03,0.00028767,17]
[391629937,1760709118797,-1200.12,0.00028767,17]
[391629938,1760709118807,-1288.92,0.00028767,17]
[391629939,1760709118817,-151.0,0.00028767,30]
[391629940,1760709118827,-151.0,0.00028767,30]
[391629941,1760709118836,-1817.2,0.00028767,17]
[391629942,1760709118846,-500.0,0.00028767,17]
[391629943,1760709118855,-760.86,0.00028767,17]
[391629944,1760709118865,-151.0,0.00028767,30]
[391629945,1760709118874,-457.742397,0.00028767,30]
[391629946,1760709118884,-151.0,0.00028767,30]
[391629947,1760709118894,-457.742397,0.00028767,30]
[391629948,1760709118903,-209.633361,0.00028767,30]
[391629949,1760709118912,-457.742397,0.00028767,30]
[391629950,1760709118922,-209.633361,0.00028767,30]
[391629951,1760709118932,-457.742397,0.00028767,30]
[391629952,1760709118941,-151.0,0.00028767,14]
[391629953,1760709118952,-209.633361,0.00028767,30]
[391629954,1760709118962,-209.633361,0.00028767,30]
[391629955,1760709118972,-1098.2,0.00028767,17]
[391629956,1760709118981,-151.0,0.00028767,30]
[391629957,1760709118991,-151.0,0.00028767,30]
[391629958,1760709119002,-511.22,0.00028767,17]
[391629959,1760709119013,-706.0,0.00028767,17]
[391629960,1760709119023,-151.0,0.00028767,30]
[391629961,1760709119033,-151.0,0.00028767,30]
[391629962,1760709119042,-151.0,0.00028767,30]
[391629963,1760709119052,-3252.66,0.00028767,17]
[391629964,1760709119061,-279.338575,0.00028767,30]
[391629965,1760709119071,-2857.65,0.00028767,17]
[391629966,1760709119081,-1046.4,0.00028767,17]
[391629967,1760709119091,-500.0,0.00028767,17]
[391629968,1760709119101,-500.0,0.00028767,17]
[391629969,1760709119111,-668.62,0.00028767,17]
[391629970,1760709119120,-3315.73,0.00028767,17]
[391629971,1760709119130,-2028.03,0.00028767,17]
[391629972,1760709119140,-1249.99,0.00028767,17]
[391629973,1760709119149,-500.0,0.00028767,17]
[391629974,1760709119159,-666.89,0.00028767,17]
[391629975,1760709119169,-567.07,0.00028767,17]
[391629976,1760709119179,-624.28,0.00028767,17]
[391629977,1760709119188,-500.0,0.00028767,2]
[391629978,1760709119198,-500.0,0.00028767,17]
[391629979,1760709119208,-500.0,0.00028767,17]
[391629980,1760709119218,-644.5,0.00028767,17]
[391629981,1760709119228,-738.71,0.00028767,17]
[391629982,1760709119238,-500.0,0.00028767,17]
[391629983,1760709119251,-453.54063866,0.00028767,17]
[391629984,1760709119261,-875.04,0.00028767,17]
[391629985,1760709119270,-2590.26,0.00028767,17]
[391629986,1760709119280,-1145.85,0.00028767,17]
[391629987,1760709119289,-500.0,0.00028767,17]
[391629988,1760709119300,-500.0,0.00028767,17]
[391629989,1760709119310,-589.63,0.00028767,17]
[391629990,1760709119319,-840.86,0.00028767,17]
[391629991,1760709119329,-599.72,0.00028767,17]
[391629992,1760709119339,-500.0,0.00028767,17]
[391629993,1760709119349,-2359.88,0.00028767,17]
[391629994,1760709119358,-2899.42,0.00028767,17]
[391629995,1760709119368,-926.78,0.00028767,17]
[391629996,1760709119377,-970.74,0.00028767,17]
[391629997,1760709119387,-1604.59,0.00028767,17]
[391629998,1760709119396,-500.0,0.00028767,17]
[391629999,1760709119406,-500.0,0.00028767,17]
[391630000,1760709119415,-693.35,0.00028767,2]
[391630001,1760709119425,-620.21,0.00028767,17]
[391630002,1760709119435,-500.0,0.00028767,17]
[391630003,1760709119447,-693.02,0.00028767,17]
[391630004,1760709119457,-500.0,0.00028767,17]
[391630005,1760709119466,-1354.15,0.00028767,17]
[391630006,1760709119476,-3285.62,0.00028767,17]
[391630007,1760709119486,-500.0,0.00028767,17]
[391630008,1760709119498,-751.82,0.00028767,17]
[391630009,1760709119507,-1494.42,0.00028767,17]
[391630010,1760709119517,-633.38,0.00028767,17]
[391630011,1760709119527,-500.0,0.00028767,17]
[391630012,1760709119537,-996.02,0.00028767,17]
[391630013,1760709119547,-534.95,0.00028767,17]
[391630014,1760709119620,-712.19,0.00028767,17]
[391630015,1760709119630,-755.48,0.00028767,17]
[391630016,1760709119640,-652.89,0.00028767,17]
[391630017,1760709119649,-530.1,0.00028767,17]
[391630018,1760709119661,-500.0,0.00028767,17]
[391630019,1760709119670,-2532.97,0.00028767,17]
[391630020,1760709119680,-1140.2,0.00028767,17]
[391630021,1760709119691,-2976.2,0.00028767,17]
[391630022,1760709119701,-630.41,0.00028767,17]
[391630023,1760709119711,-1119.53,0.00028767,17]
[391630024,1760709119720,-1387.94,0.00028767,17]
[391630025,1760709119729,-666.66,0.00028767,17]
[391630026,1760709119739,-566.55,0.00028767,17]
[391630027,1760709119750,-500.0,0.00028767,2]
[391630028,1760709119759,-706.74,0.00028767,17]
[391630029,1760709119768,-1000.0,0.00028767,17]
[391630030,1760709119778,-500.0,0.00028767,7]
[391630031,1760709119788,-1306.87,0.00028767,17]
[391630032,1760709119797,-1247.05,0.00028767,17]
[391630033,1760709119807,-2452.62,0.00028767,17]
[391630034,1760709119816,-500.0,0.00028767,17]
[391630035,1760709119826,-500.0,0.00028767,17]
[391630036,1760709119835,-530.71,0.00028767,17]
[391630037,1760709119844,-500.0,0.00028767,17]
[391630038,1760709119854,-642.79,0.00028767,17]
[391630039,1760709119863,-1026.4,0.00028767,17]
[391630040,1760709119872,-500.0,0.00028767,17]
[391630041,1760709119881,-500.0,0.00028767,17]
[391630042,1760709119890,-500.0,0.00028767,17]
[391630043,1760709119900,-3204.71,0.00028767,17]
[391630044,1760709119909,-522.5,0.00028767,17]
[391630045,1760709119919,-910.91,0.00028767,17]
[391630046,1760709119928,-1081.82,0.00028767,30]
[391630047,1760709119937,-500.0,0.00028767,17]
[391630048,1760709119946,-5381.98,0.00028767,2]
[391630049,1760709119955,-500.0,0.00028767,14]
[391630050,1760709119964,-1649.56,0.00028767,17]
[391630051,1760709119973,-507.36,0.00028767,17]
[391630052,1760709119982,-2000.0,0.00028767,7]
[391630053,1760709119991,-1028.69,0.00028767,17]
[391630054,1760709120002,-2897.84,0.00028767,17]
[391630055,1760709120011,-1506.26,0.00028767,17]
[391630056,1760709120021,-500.0,0.00028767,17]
[391630057,1760709120031,-1864.44,0.00028767,14]
[391630058,1760709120040,-1456.13,0.00028767,17]
[391630059,1760709120050,-500.0,0.00028767,16]
[391630060,1760709120060,-1557.69,0.00028767,17]
[391630061,1760709120069,-151.0,0.00028767,30]
[391630062,1760709120079,-151.0,0.00028767,30]
[391630063,1760709120088,-151.0,0.00028767,30]
[391630064,1760709120097,-2131.241466,0.00028767,30]
[391630065,1760709120107,-2742.55,0.00028767,17]
[391630066,1760709120117,-2131.241466,0.00028767,30]
[391630067,1760709120126,-2074.75,0.00028767,17]
[391630068,1760709120136,-175.368891,0.00028767,30]
[391630069,1760709120145,-2131.241466,0.00028767,30]
[391630070,1760709120154,-175.368891,0.00028767,30]
[391630071,1760709120163,-2131.241466,0.00028767,30]
[391630072,1760709120173,-175.368891,0.00028767,30]
[391630073,1760709120183,-175.36889331,0.00028767,30]
[391630074,1760709120194,-151.0,0.00028767,30]
[391630075,1760709120205,-504.38,0.00028767,17]
[391630076,1760709120215,-746.027,0.00028767,30]
[391630077,1760709120225,-500.0,0.00028767,17]
[391630078,1760709120235,-746.027,0.00028767,30]
[391630079,1760709120248,-151.0,0.00028767,30]
[391630080,1760709120257,-746.027,0.00028767,30]
[391630081,1760709120267,-1384.14,0.00028767,17]
[391630082,1760709120277,-153.535542,0.00028767,30]
[391630083,1760709120286,-2196.07,0.00028767,17]
[391630084,1760709120296,-746.02700116,0.00028767,30]
[391630085,1760709120306,-559.51,0.00028767,17]
[391630086,1760709120316,-500.0,0.00028767,17]
[391630087,1760709120326,-3718.78,0.00028767,17]
[391630088,1760709120335,-500.0,0.00028767,17]
[391630089,1760709120344,-500.0,0.00028767,17]
[391630090,1760709120354,-3147.15,0.00028767,17]
[391630091,1760709120363,-500.0,0.00028767,17]
[391630092,1760709120372,-4200.71,0.00028767,17]
[391630093,1760709120382,-151.0,0.00028767,30]